Cogmind - Beta 13 *** ADVENTURER MODE // 2024.04.08 @ 12:44:16 Player: Cheeseinator Result: Destroyed by H-71 Marshal with Heavy Mass Driver Performance ------------- Evolutions (5) 2500 Regions Visited (10) 2000 Robots Destroyed (107) 535 Value Destroyed (2641) 2641 Prototype IDs (2) 40 Alien Tech Used (0) 0 Bonus (701) 701 TOTAL SCORE: 8417 Bonus ------- Follower Combat Kills 595 Entered DSFs 500 Friendly Fire -394 Cogmind --------- Core Integrity 0/1000 Matter 231/300 Energy 100/100 System Corruption 2% Temperature Cool (0) Movement Core (50) Location -5/Factory Parts ------- > --- POWER (2) -------- (None) > --- PROPULSION (5) --- (None) > --- UTILITY (7) ------ (None) > --- WEAPON (3) ------- Lance > --- INVENTORY (5) ---- Recoil Nullifier Peak State ------------ > --- POWER ------------ Reinforced Deuterium Engine > --- PROPULSION ------- Carbon-fiber Leg Carbon-fiber Leg Airjet Backup Propulsion III > --- UTILITY ---------- Improved Heat Sink Active Sensor Suite Weapon Cycler Backup Plating III Drone Bay > --- WEAPON ----------- Proton Cannon Heavy Assault Rifle Autogun > --- INVENTORY -------- Backup Power III Cesium-ion Thruster Beamcaster Disruptor Cannon Heavy Missile Launcher [Rating: 69] Favorites ----------- Power Light Ion Engine Engine Light Ion Engine Power Core Light Fission Core Propulsion Aluminum Leg Treads Light Treads Leg Aluminum Leg Wheel Wheel Hover Unit Backup Propulsion III Flight Unit VTOL Module Utility High-capacity Storage Unit Device Improved Heat Sink Storage High-capacity Storage Unit Processor Targeting Computer Hackware Makeshift Hacking Suite Protection Utility Shielding Weapon Particle Gun Energy Gun Particle Gun Energy Cannon Disruptor Cannon Ballistic Gun Assault Rifle Ballistic Cannon Magnetic Acceleration Cannon Launcher Heavy Missile Launcher Piercing Weapon Lance Special Melee Weapon Improved Datajack Build | -11 -10 -10 -10 -8 -7 -7 -7 -7 -6 -5 ------- Run | Yrd Mat Min Sub Mat Fac Was Fac DSF Fac Fac Slots Evolved 10 | . . . . 4 2 . . . 2 2 Power 1 | . . . . . . . . . . 1 Propulsion 3 | . . . . . 2 . . . . 1 Utility 5 | . . . . 4 . . . . 1 . Weapon 1 | . . . . . . . . . 1 . Parts Attached 150 | 7 7 8 2 30 12 9 1 4 39 31 Power 15 | 1 1 1 1 3 1 . . . 4 3 Engine 12 | 1 1 1 1 3 1 . . . 2 2 Core 3 | . . . . . . . . . 2 1 Reactor . | . . . . . . . . . . . Propulsion 51 | 3 1 5 . 8 7 . 1 . 13 13 Treads 5 | . . . . 2 2 . . . . 1 Leg 18 | 2 1 5 . 4 1 . . . 4 1 Wheel 16 | 1 . . . 2 4 . . . 1 8 Hover 3 | . . . . . . . . . 3 . Flight 9 | . . . . . . . 1 . 5 3 Utility 36 | 1 2 . 1 9 2 5 . 3 10 3 Device 18 | . . . . 4 . 5 . 2 6 1 Storage 4 | 1 1 . . 1 . . . . . 1 Processor 7 | . . . . 2 . . . 1 3 1 Hackware 1 | . . . . 1 . . . . . . Protection 6 | . 1 . 1 1 2 . . . 1 . Artifact . | . . . . . . . . . . . Weapon 48 | 2 3 2 . 10 2 4 . 1 12 12 Energy Gun 15 | . 1 2 . 5 1 . . . 2 4 Energy Cannon 8 | . . . . . . 3 . . 3 2 Ballistic Gun 9 | 2 2 . . . . . . 1 4 . Ballistic Cannon 3 | . . . . . 1 . . . 1 1 Launcher 8 | . . . . 3 . 1 . . 2 2 Special Weapon . | . . . . . . . . . . . Impact Weapon . | . . . . . . . . . . . Slashing Weapon . | . . . . . . . . . . . Piercing Weapon 3 | . . . . . . . . . . 3 Special Melee Weapon 2 | . . . . 2 . . . . . . Unidentified Prototypes 2 | . . . . . . . . 1 . 1 Parts Lost 39 | . . . . 6 7 . . . 11 15 Power 2 | . . . . . . . . . . 2 Propulsion 16 | . . . . 2 3 . . . 4 7 Utility 11 | . . . . 3 2 . . . 5 1 Weapon 10 | . . . . 1 2 . . . 2 5 Highest Loss Streak 9 | . . . . 3 3 . . . 2 9 To Critical Strikes 1 | . . . . . . . . . . 1 Average Slot Usage (%) 82 | . 99 100 99 95 89 54 69 69 68 36 Engine 8 | . 14 14 14 9 6 5 7 7 2 . Core 1 | . . . . . . . . . 3 7 Treads 1 | . . . . 4 4 . . . . . Leg 14 | . 28 28 28 12 . . . . 8 . Wheel 2 | . . . . . 20 . . . . 8 Hover 1 | . . . . . . 12 15 15 4 . Device 9 | . . . . 19 17 10 15 19 16 1 Storage 7 | . 14 14 14 9 14 . . . . . Processor 3 | . . . . 6 . . . 4 10 1 Protection 9 | . 13 14 13 13 9 11 15 5 1 . Energy Gun 9 | . 2 26 28 13 1 5 7 7 1 1 Ballistic Gun 6 | . 25 1 . . . . . 5 10 . Ballistic Cannon 1 | . . . . . 1 . . . 3 3 Launcher 1 | . . . . 3 10 . . . . 2 Naked Turns 172 | . . . . . 16 27 . . 52 77 Heaviest Build 77 | 11 51 52 52 67 77 19 19 19 43 46 Greatest Support 62 | 20 20 30 30 40 40 16 16 16 40 62 Greatest Overweight (x) 7 | . 2 2 1 3 7 5 1 1 7 4 Average Overweight (x) . | . 1 1 1 1 1 . 1 . . 1 Largest Inventory Capacity 20 | 8 20 20 20 20 20 5 5 5 5 5 Average Capacity 13 | 7 19 20 20 20 19 5 5 5 5 5 Most Carried 20 | 4 17 20 20 20 20 5 4 5 5 5 Average Carried 10 | 3 10 18 19 14 17 2 3 4 4 1 Final Capacity 20 | 8 20 20 20 20 5 5 5 5 5 5 Final Carried 20 | 4 16 20 20 20 5 2 4 5 4 1 Class Distribution -------------------- 39% | Scavenger-Mutant 30% | Mutant 11% | Scavenger-Gunner 6% | Scavenger-Skirmisher 5% | Gunner Dominant Class ---------------- Mutant | -10/Materials Scavenger-Mutant | -10/Mines Scavenger-Mutant | -10/Subcaves Scavenger-Mutant | -8/Materials Scavenger-Mutant | -7/Factory Mutant | -7/Waste Mutant | -7/Factory Skirmisher | -7/DSF Scavenger-Gunner | -6/Factory Gunner | -5/Factory Resources | -11 -10 -10 -10 -8 -7 -7 -7 -7 -6 -5 ----------- Run | Yrd Mat Min Sub Mat Fac Was Fac DSF Fac Fac Matter Collected 2947 | 358 321 131 7 424 128 315 . 59 769 435 Remotely . | . . . . . . . . . . . Salvage Created 4029 | 204 455 259 . 1164 231 . . . 1015 701 Parts 197 | 16 22 15 . 50 9 . . . 54 31 Haulers Intercepted . | . . . . . . . . . . . Recyclers Shooed 13 | . 7 . . 1 . . . . 4 1 Parts Field Recycled . | . . . . . . . . . . . Retrieved Matter . | . . . . . . . . . . . Parts Self-Destructed . | . . . . . . . . . . . Prevented . | . . . . . . . . . . . Kills | -11 -10 -10 -10 -8 -7 -7 -7 -7 -6 -5 ------- Run | Yrd Mat Min Sub Mat Fac Was Fac DSF Fac Fac Combat Hostiles Destroyed 53 | . 6 7 . 18 8 . . . 13 1 Guns 35 | . 6 7 . 15 . . . . 7 . Cannons 5 | . . . . . . . . . 4 1 AOE 11 | . . . . 2 7 . . . 2 . Classes Destroyed 16 | 3 3 1 . 2 2 . . . 5 . Worker 18 | 2 1 . . 3 5 . . . 4 3 Builder 6 | . 1 . . 2 . . . . 1 2 Tunneler 4 | 4 . . . . . . . . . . Recycler 16 | 1 1 1 . 6 . . . . 2 5 Drone 1 | . . . . . . . . . 1 . Watcher 8 | . 2 . . 1 . . . . 3 2 Swarmer 13 | . . 3 . 7 . . . . 3 . Cutter 1 | . . . . . 1 . . . . . Grunt 22 | . 6 4 . 8 2 . . . 2 . Brawler 3 | . . . . 1 . . . . 2 . Duelist 2 | . . . . . . . . . 2 . Protector 1 | . . . . . 1 . . . . . Sentry 6 | . . . . 2 4 . . . . . Hunter 2 | . . . . . . . . . 2 . Programmer 3 | . . . . . . . . . 2 1 Surgeon 1 | . . . . . . . . . 1 . Thug 1 | . . . . . . . . . 1 . Best Kill Streak 9 | 3 3 3 . 4 9 . . . 5 4 Combat Bots Only 4 | . 2 3 . 4 4 . . . 3 1 Max Kills in Single Turn 5 | 1 1 2 . 1 5 . . . 5 2 Gunslinging 1 | . . 1 . . . . . . . . Exploded 2 | . . . . 1 2 . . . 2 . Melee . | . . . . . . . . . . . Uniques/NPCs Destroyed . | . . . . . . . . . . . Combat | -11 -10 -10 -10 -8 -7 -7 -7 -7 -6 -5 -------- Run | Yrd Mat Min Sub Mat Fac Was Fac DSF Fac Fac Hostile Shots Fired 747 | . 49 38 2 111 144 . . . 251 152 Missed 289 | . 7 10 . 36 67 . . . 105 64 Damage Taken 6080 | . 400 236 30 755 682 11 . . 2157 1809 Core 2061 | . 73 41 . 124 84 . . . 738 1001 Absorbed by Shields . | . . . . . . . . . . . Redirected to Shielding 37 | . 2 4 . 27 4 . . . . . Ignored by Resistances 1727 | . 121 75 8 228 226 3 . 1 593 472 Regen/Repaired (Parts) 60 | . . . . . . 42 . . 18 . Core Remaining (%) 66 | 100 . . 54 77 . . . 88 13 . Volleys Fired 287 | 22 45 21 16 69 22 . . 4 59 29 Largest 3 | 2 2 2 2 2 2 . . 2 3 3 Hottest 203 | 40 85 130 130 126 95 . . 121 128 203 Shots Fired 577 | 44 89 40 32 131 36 . . 8 151 46 Gun 478 | 44 89 40 32 128 9 . . 7 118 11 Cannon 68 | . . . . . 1 . . 1 32 34 Launcher 31 | . . . . 3 26 . . . 1 1 Special . | . . . . . . . . . . . Kinetic 294 | 44 86 16 . . 1 . . 3 119 25 Thermal 228 | . 3 24 32 128 9 . . 4 24 4 Explosive 31 | . . . . 3 26 . . . 1 1 Electromagnetic 24 | . . . . . . . . 1 7 16 Robot Hit Streak 33 | 23 32 12 . 20 33 . . 8 16 13 Robot Miss Streak 7 | 1 3 2 . 2 1 . . . 7 2 Penetration Max 1 | . . . . . . . . . 1 1 Secondary Targets 7 | . 1 1 . 5 . . . . . . Max Gunslinging Chain 1 | . 1 1 . 1 . . . . . . Shots Hit Robots 416 | 34 71 30 . 102 18 . . 8 112 41 Core Hits 228 | 13 23 13 . 45 29 . . 3 78 24 Critical Kills 1 | 1 . . . . . . . . . . Critical Parts Destroyed . | . . . . . . . . . . . Critical Strikes 15 | 1 . 2 . 7 1 . . . 1 3 Burn 11 | . . 2 . 7 1 . . . 1 . Destroy 1 | 1 . . . . . . . . . . Blast 3 | . . . . . . . . . . 3 Melee Attacks 6 | . . . . 1 . . . . . 5 Impact . | . . . . . . . . . . . Slashing . | . . . . . . . . . . . Piercing 5 | . . . . . . . . . . 5 Sneak Attacks 1 | . . . . . . . . . . 1 Combat Hostiles . | . . . . . . . . . . . Follow-up Attacks . | . . . . . . . . . . . Damage Inflicted 8882 | 362 892 439 . 1783 1247 . . 106 2629 1424 Guns 5123 | 362 889 439 . 1621 130 . . 91 1470 121 Cannons 1571 | . . . . . . . . 15 596 960 Explosions 1900 | . . . . 162 1117 . . . 470 151 Melee 151 | . . . . . . . . . . 151 Ramming 137 | . 3 . . . . . . . 93 41 Kinetic 3844 | 362 855 143 . . . . . 41 1697 746 Thermal 2695 | . 34 296 . 1621 130 . . 50 299 265 Explosive 1797 | . . . . 162 1117 . . . 470 48 Electromagnetic 258 | . . . . . . . . 15 70 173 Impact . | . . . . . . . . . . . Slashing . | . . . . . . . . . . . Piercing 151 | . . . . . . . . . . 151 Highest Corruption 5 | . . . . 2 . . . . 5 2 Average Corruption 2 | . . . . 2 . . . . 3 1 Corruption Purged . | . . . . . . . . . . . Corruption Blocked . | . . . . . . . . . . . Effects 48 | . . . . 18 . . . . 27 3 Message Errors 12 | . . . . 4 . . . . 7 1 Matter Fused 9 | . . . . 2 . . . . 7 . Heat Flow Errors 5 | . . . . 3 . . . . 1 1 Energy Discharges 4 | . . . . 2 . . . . 2 . Parts Rejected 3 | . . . . 1 . . . . 1 1 Data Loss (minor) 5 | . . . . 2 . . . . 3 . Misfires 4 | . . . . 1 . . . . 3 . Alerts 3 | . . . . 1 . . . . 2 . Weapon Failures 3 | . . . . 2 . . . . 1 . Overload Shots . | . . . . . . . . . . . Overflow Damage 128 | . . . . 8 11 . . . 63 46 Projectiles 27 | . . . . . . . . . 27 . Explosions 67 | . . . . 8 11 . . . 36 12 Melee 34 | . . . . . . . . . . 34 Knockbacks 12 | . . . . . . . . . 8 4 Impact 1 | . . . . . . . . . 1 . Kinetic 10 | . . . . . . . . . 7 3 Secondary 1 | . . . . . . . . . . 1 Self-Inflicted Damage 270 | . . . . . 189 . . . 61 20 Shots 14 | . . . . . 13 . . . 1 . Rammed 14 | . . . . . . . . . 8 6 Targets Rammed 23 | . 1 . . . . . . . 16 6 Kicked 9 | . 1 . . . . . . . 8 . Crushed . | . . . . . . . . . . . Highest Temperature 645 | . 72 227 144 645 188 . . . 177 305 Average Temperature 78 | . 19 91 72 111 46 . . . 37 96 Received Heat Transfer 1857 | . 333 96 12 369 264 . . . 660 123 Effects 11 | . . . . 10 . . . . . 1 Shutdowns 3 | . . . . 3 . . . . . . Energy Bleed 2 | . . . . 1 . . . . . 1 Matter Decay 2 | . . . . 2 . . . . . . Short Circuit 1 | . . . . 1 . . . . . . Damage (minor) 1 | . . . . 1 . . . . . . Damage (major) 2 | . . . . 2 . . . . . . Siege Activations . | . . . . . . . . . . . Robots Corrupted . | . . . . . . . . . . . Combat Hostiles . | . . . . . . . . . . . Parts Fried . | . . . . . . . . . . . Impact Corruptions . | . . . . . . . . . . . Robots Melted 2 | . . . . 1 1 . . . . . Combat Hostiles 2 | . . . . 1 1 . . . . . Parts Melted 24 | . . 1 . 15 3 . . . 4 1 Heat Transferred 6736 | . 74 888 . 4292 407 . . 148 777 150 Parts Sabotaged . | . . . . . . . . . . . Parts Stolen . | . . . . . . . . . . . Parts Stripped . | . . . . . . . . . . . Power Chain Reactions 1 | . . . . . . . . . . 1 Alert | -11 -10 -10 -10 -8 -7 -7 -7 -7 -6 -5 ------- Run | Yrd Mat Min Sub Mat Fac Was Fac DSF Fac Fac Peak Influence 397 | 35 126 141 . 245 306 106 80 349 397 246 Initial 158 | . 19 36 . . 33 35 65 49 158 76 Average 108 | 19 45 40 . 109 146 95 70 196 225 92 Maximum Alert Level 1 | . . . . 1 1 . . 1 1 1 Low Security (%) 79 | 100 100 100 . 78 67 100 100 34 42 89 Level 1 20 | . . . . 21 32 . . 65 57 10 Level 2 . | . . . . . . . . . . . Level 3 . | . . . . . . . . . . . Level 4 . | . . . . . . . . . . . Level 5 . | . . . . . . . . . . . High Security . | . . . . . . . . . . . Max Security . | . . . . . . . . . . . Sterilizations 1 | . . . . . . . . 1 . . Squads Dispatched 14 | . . . . 1 4 . . 1 5 3 Investigation 3 | . . . . 1 1 . . . 1 . Extermination 3 | . . . . . . . . . 2 1 Reinforcement 5 | . . . . . . . . 1 2 2 Assault . | . . . . . . . . . . . Garrison 3 | . . . . . 3 . . . . . Intercept . | . . . . . . . . . . . Searches Triggered . | . . . . . . . . . . . Construction Impeded . | . . . . . . . . . . . Haulers Reinforced 2 | . . . . . . . . . 1 1 Active Scanning Responses . | . . . . . . . . . . . Cargo Convoy Interrupts . | . . . . . . . . . . . Stealth | -11 -10 -10 -10 -8 -7 -7 -7 -7 -6 -5 --------- Run | Yrd Mat Min Sub Mat Fac Was Fac DSF Fac Fac Distress Signals 4 | . . . . 1 . . . . 3 . Communications Jammed . | . . . . . . . . . . . Distress Signals . | . . . . . . . . . . . Times Spotted 142 | . 12 9 11 25 10 6 . 7 44 18 Peak Tracking Total 10 | . 2 3 10 6 5 6 . 5 8 7 Tactical Retreats 15 | . . . . 2 . 1 . . 7 5 Traps | -11 -10 -10 -10 -8 -7 -7 -7 -7 -6 -5 ------- Run | Yrd Mat Min Sub Mat Fac Was Fac DSF Fac Fac Traps Triggered 6 | . . . . . 1 . . 1 2 2 Indirectly . | . . . . . . . . . . . Trap Hack Attempts . | . . . . . . . . . . . Triggered . | . . . . . . . . . . . Disarmed . | . . . . . . . . . . . Reprogrammed . | . . . . . . . . . . . Reused . | . . . . . . . . . . . Traps Extracted . | . . . . . . . . . . . Installed . | . . . . . . . . . . . Triggered . | . . . . . . . . . . . Machines | -11 -10 -10 -10 -8 -7 -7 -7 -7 -6 -5 ---------- Run | Yrd Mat Min Sub Mat Fac Was Fac DSF Fac Fac Machines Disabled 19 | . 3 . . 2 3 . . 2 9 . Max in Single Turn 4 | . 1 . . 1 2 . . . 4 . Machines Repaired . | . . . . . . . . . . . Machines Dismantled . | . . . . . . . . . . . Machines Sabotaged . | . . . . . . . . . . . Overloaded Fab Kills . | . . . . . . . . . . . Hacking | -11 -10 -10 -10 -8 -7 -7 -7 -7 -6 -5 --------- Run | Yrd Mat Min Sub Mat Fac Was Fac DSF Fac Fac Machines Accessed 5 | . 2 . . 1 1 . 1 . . . Terminals 4 | . 1 . . 1 1 . 1 . . . Fabricators . | . . . . . . . . . . . Repair Stations . | . . . . . . . . . . . Recycling Units 1 | . 1 . . . . . . . . . Scanalyzers . | . . . . . . . . . . . Garrison Access . | . . . . . . . . . . . Total Hacks 13 | . 2 . . 5 4 . 2 . . . Successful 7 | . . . . 3 3 . 1 . . . Failed 6 | . 2 . . 2 1 . 1 . . . Catastrophic 4 | . 1 . . 2 1 . . . . . Database Lockouts . | . . . . . . . . . . . Manual 7 | . 1 . . 4 2 . . . . . Terminals 12 | . 1 . . 5 4 . 2 . . . Fabricators . | . . . . . . . . . . . Repair Stations . | . . . . . . . . . . . Recycling Units 1 | . 1 . . . . . . . . . Scanalyzers . | . . . . . . . . . . . Garrison Access . | . . . . . . . . . . . Terminal Hacks 7 | . . . . 3 3 . 1 . . . Record 6 | . . . . 3 3 . . . . . Open DSF 1 | . . . . . . . 1 . . . Fabricator Hacks . | . . . . . . . . . . . Repair Station Hacks . | . . . . . . . . . . . Recycling Unit Hacks . | . . . . . . . . . . . Scanalyzer . | . . . . . . . . . . . Garrison Access Hacks . | . . . . . . . . . . . Unauthorized Hacks . | . . . . . . . . . . . Terminals . | . . . . . . . . . . . Fabricators . | . . . . . . . . . . . Repair Stations . | . . . . . . . . . . . Recycling Units . | . . . . . . . . . . . Scanalyzers . | . . . . . . . . . . . Garrison Access . | . . . . . . . . . . . Data Cores Recovered . | . . . . . . . . . . . Used . | . . . . . . . . . . . Hacking Detections 3 | . 1 . . 1 1 . . . . . Full Trace Events 2 | . . . . 1 1 . . . . . Feedback Events . | . . . . . . . . . . . Feedback Blocked . | . . . . . . . . . . . Robot Schematics Acquired . | . . . . . . . . . . . Robots Built . | . . . . . . . . . . . Authchips . | . . . . . . . . . . . Time . | . . . . . . . . . . . Total Robot Build Rating . | . . . . . . . . . . . Part Schematics Acquired . | . . . . . . . . . . . Parts Built . | . . . . . . . . . . . Authchips . | . . . . . . . . . . . Time . | . . . . . . . . . . . Total Part Build Rating . | . . . . . . . . . . . Parts Repaired . | . . . . . . . . . . . Time . | . . . . . . . . . . . Parts Recycled . | . . . . . . . . . . . Recycled Matter . | . . . . . . . . . . . Retrieved Matter . | . . . . . . . . . . . Retrieved Components . | . . . . . . . . . . . Parts Scanalyzed . | . . . . . . . . . . . Part Schematics Acquired . | . . . . . . . . . . . Parts Damaged . | . . . . . . . . . . . Bothacking | -11 -10 -10 -10 -8 -7 -7 -7 -7 -6 -5 ------------ Run | Yrd Mat Min Sub Mat Fac Was Fac DSF Fac Fac Used RIF Installer . | . . . . . . . . . . . Robots Hacked 1 | . . . . 1 . . . . . . Non-combat . | . . . . . . . . . . . Combat 1 | . . . . 1 . . . . . . Robot Hacks Applied 1 | . . . . 1 . . . . . . parse_system 1 | . . . . 1 . . . . . . Relay Couplers Released . | . . . . . . . . . . . Fabnet Peak Effective % . | . . . . . . . . . . . Robots Rewired . | . . . . . . . . . . . Allies Hacked . | . . . . . . . . . . . Hacks Repelled . | . . . . . . . . . . . Allies | -11 -10 -10 -10 -8 -7 -7 -7 -7 -6 -5 -------- Run | Yrd Mat Min Sub Mat Fac Was Fac DSF Fac Fac Total Allies 18 | . . . . . . 18 . . . . Largest Group 18 | . . . . . . 18 15 15 11 . Highest-Rated Group 444 | . . . . . . 444 400 400 326 . Highest-Rated Ally 35 | . . . . . . 35 35 35 35 . Total Orders . | . . . . . . . . . . . Ally Attacks 213 | . . . . . . 127 2 62 22 . Total Damage 6979 | . . . . . . 3829 39 1513 1598 . Kills 26 | . . . . . . 9 . 9 8 . Allies Corrupted . | . . . . . . . . . . . Allies Melted . | . . . . . . . . . . . Intel | -11 -10 -10 -10 -8 -7 -7 -7 -7 -6 -5 ------- Run | Yrd Mat Min Sub Mat Fac Was Fac DSF Fac Fac Robot Analysis Total . | . . . . . . . . . . . Derelict Logs Recovered 2 | . . 1 1 . . . . . . . Drone Launches 2 | . . . . . . . . 2 . . Drone Recoveries . | . . . . . . . . . . . Exploration | -11 -10 -10 -10 -8 -7 -7 -7 -7 -6 -5 ------------- Run | Yrd Mat Min Sub Mat Fac Was Fac DSF Fac Fac Turns Passed 7912 | 305 1197 1345 279 1366 441 298 61 247 1511 862 Spaces Moved 4410 | 211 403 537 118 399 318 221 38 121 1247 797 Core 456 | 32 . . . . 33 61 . . 97 233 Treads 181 | . . . . 132 49 . . . . . Legs 2112 | 178 403 537 118 229 . . . . 645 2 Wheels 725 | 1 . . . 38 236 . . . 22 428 Hover 395 | . . . . . . 160 38 121 76 . Flight 541 | . . . . . . . . . 407 134 Fastest Speed 27 | 50 120 190 190 110 50 50 156 76 27 39 Average Speed 144 | 109 252 231 190 233 115 127 156 138 93 88 Slowest Speed 400 | 120 260 260 190 330 245 300 156 156 400 270 Overloaded Moves . | . . . . . . . . . . . Propulsion Burnouts . | . . . . . . . . . . . Robots Hopped . | . . . . . . . . . . . Cave-ins Triggered . | . . . . . . . . . . . Exploration Rate (%) 36 | 8 50 87 5 22 7 80 1 93 26 20 Regions Visited 10 Branch Regions 2 Pre-discovered Areas 1 | . . 1 . . . . . . . . Known Exits Taken 1 | . . . . . . . 1 . . . Unknown Exits Taken 6 | 1 1 1 1 1 . . . . 1 . Scrap Searched 3 | . . 3 . . . . . . . . Spaces Dug 21 | . . . . . 21 . . . . . Terrain Destroyed 220 | . . . . 45 131 . . . 17 27 Melee . | . . . . . . . . . . . Projectile 12 | . . . . . . . . . 2 10 AOE 208 | . . . . 45 131 . . . 15 17 Terrain Rammed . | . . . . . . . . . . . Walls Destroyed . | . . . . . . . . . . . Machines Disabled . | . . . . . . . . . . . Actions | -11 -10 -10 -10 -8 -7 -7 -7 -7 -6 -5 --------- Run | Yrd Mat Min Sub Mat Fac Was Fac DSF Fac Fac Total 5395 | 243 493 601 144 706 359 240 40 194 1473 902 Wait 369 | . 22 17 3 172 . 3 . 37 96 19 Move 4401 | 210 402 536 117 398 318 220 37 120 1246 797 Hop . | . . . . . . . . . . . Pick Up 57 | 3 12 9 2 14 4 1 1 1 5 5 Fast Attach 57 | 7 1 . . 5 . 2 1 2 23 16 Attach 57 | . . . 1 17 7 7 . . 13 12 Detach 32 | 1 . . 1 11 . 4 1 1 7 6 Swap 36 | . 6 8 1 8 5 . . 2 3 3 Drop 45 | . 4 10 3 11 3 3 . 2 5 4 Fire 287 | 22 45 21 16 69 22 . . 4 59 29 Melee 6 | . . . . 1 . . . . . 5 Ram 14 | . . . . . . . . . 8 6 Kick 9 | . 1 . . . . . . . 8 . Crush . | . . . . . . . . . . . Escape Stasis 25 | . . . . . . . . 25 . . Rewire . | . . . . . . . . . . . Trap . | . . . . . . . . . . . Miscellaneous . | . . . . . . . . . . . Route ------- -11/Scrapyard -10/Materials (discovered 3 exits: [*Mat x2] / [*Min]) -10/Mines -10/Subcaves -8/Materials -7/Factory -7/Waste -7/Factory -7/DSF -6/Factory -5/Factory History --------- Turn | Location | Event 6 | -11/Scrapyard | Discovered new exit (range 16) 306 | -11/Scrapyard | Entered Materials 307 | -10/Materials | Build established: Mutant 478 | -10/Materials | Discovered new exit (range 14) 1267 | -10/Materials | Discovered new exit (range 5) 1384 | -10/Materials | Discovered new exit (range 15) 1503 | -10/Materials | Entered Mines 1907 | -10/Mines | Build established: Scavenger-Mutant 2027 | -10/Mines | Learned location of Zion (-7) 2401 | -10/Mines | Joined a pair of Derelicts in attacking an 0b10 outpost 2835 | -10/Mines | Discovered new exit (range 6) 2848 | -10/Mines | Entered Subcaves 2896 | -10/Subcaves | Shifting Twisted Machinery released Mak. Hacking Suite 2896 | -10/Subcaves | Shifting Twisted Machinery released Sub. Power Source 3036 | -10/Subcaves | Learned Materials security intel 3068 | -10/Subcaves | Discovered new exit (range 15) 3114 | -10/Subcaves | Ambushed by swarm of Subdwellers 3127 | -10/Subcaves | Entered Materials 3127 | -8/Materials | Evolved 4 slots: Utility x4 3148 | -8/Materials | Lost 3 allies 3266 | -8/Materials | Lost 3 parts (1n1u1w) 3511 | -8/Materials | Discovered new exit (range 6) 4493 | -8/Materials | Entered Factory 4493 | -7/Factory | Evolved 2 slots: Propulsion x2 4799 | -7/Factory | Lost 3 parts (2n1u) 4842 | -7/Factory | Lost 3 parts (1u2w) 4918 | -7/Factory | Released all parts (11) 4934 | -7/Factory | Sucked down chute 4934 | -7/Factory | Entered Waste 4950 | -7/Waste | Spotted C-40 Crusher 4952 | -7/Waste | Spotted C-40 Crusher 4959 | -7/Waste | Spotted C-40 Crusher 4961 | -7/Waste | Spotted C-40 Crusher 4963 | -7/Waste | Spotted C-40 Crusher 4964 | -7/Waste | Spotted C-40 Crusher 4973 | -7/Waste | Warlord forces began an assault 4980 | -7/Waste | Allies destroyed C-40 Crusher 4984 | -7/Waste | Allies destroyed C-40 Crusher 4988 | -7/Waste | Allies destroyed C-40 Crusher 4993 | -7/Waste | Allies destroyed C-40 Crusher 5020 | -7/Waste | Allies destroyed C-40 Crusher 5024 | -7/Waste | Lost 3 allies 5122 | -7/Waste | Discovered new exit (range 12) 5211 | -7/Waste | Build established: Mutant 5232 | -7/Waste | Entered Factory 5232 | -7/Factory | Accompanied by 15 allies 5289 | -7/Factory | Identified exit to DSF 5293 | -7/Factory | Entered DSF 5293 | -7/DSF | Accompanied by 15 allies 5368 | -7/DSF | Additional patrols routed to DSF 5390 | -7/DSF | Found Prototype Device 5390 | -7/DSF | Identified Active Sensor Suite 5397 | -7/DSF | Lost 3 allies 5515 | -7/DSF | Discovered new exit (range 14) 5521 | -7/DSF | Sterilization system engaged 5534 | -7/DSF | Identified exit to Factory 5540 | -7/DSF | Entered Factory 5540 | -6/Factory | Accompanied by 13 allies 5540 | -6/Factory | Evolved 2 slots: Utility x1, Weapon x1 5604 | -6/Factory | Lost 3 allies 5719 | -6/Factory | Lost 8 allies 5891 | -6/Factory | Build established: Scavenger-Skirmisher 6002 | -6/Factory | Spotted B-75 Beast 6009 | -6/Factory | Released all parts (11) 6505 | -6/Factory | Build established: Scavenger-Gunner 6966 | -6/Factory | Released all parts (11) 6998 | -6/Factory | Core integrity fell below 50% 6998 | -6/Factory | Discovered new exit (range 16) 7046 | -6/Factory | Core integrity fell below 20% 7051 | -6/Factory | Entered another Factory area 7051 | -5/Factory | Evolved 2 slots: Power x1, Propulsion x1 7411 | -5/Factory | Build established: Gunner 7687 | -5/Factory | Released all parts (6) 7706 | -5/Factory | Lost 9 parts (1p4n1u3w) 7756 | -5/Factory | Spotted B-75 Beast 7845 | -5/Factory | Core integrity fell below 50% 7882 | -5/Factory | Lost 6 parts (1p3n2w) 7901 | -5/Factory | Core integrity fell below 20% 7913 | -5/Factory | Destroyed by H-71 Marshal with Heavy Mass Driver Last Messages --------------- 07855_ R-10 Processor collects Imp. Heat Sink. 07856_ U-05 Engineer builds a Wall. 07859_ R-10 Processor collects Imp. Remote Datajack. 07860_ U-05 Engineer builds a Wall. 07872_ Nuclear Reactor explodes. 07873_ System corrupted: Heat flow error (+151). 07874_ The unstable cave ceiling collapses. 07886_ Acquired 8 matter. 07888_ Knocked back. 07893_ Sneak attack on T-07 Excavator. 07893_ Destroyed Lgt. Ion Engine. 07893_ Destroyed Mining Laser. 07898_ Slug penetrates Wall. 07900_ Knocked back. 07902_ H-71 Marshal calls for reinforcements. 07902_ ALERT: Hostile activity reported, dispatching reinforcements to area. 07902_ Knocked back. 07906_ Penetrated by Slug. 07906_ Knocked back. Map ----- +----------------------------------------------------+ | ??????????????????????????????????????????? | | ??????????????????????????????????????????? | | ??????????????????????????????????????????? | | ??????????????????????????????????????????? | | ??????????????????????????????????????????? | | ??????????????????????????????????????????? | | ??????????????????????????????????????????? | | ??????????????????????????????????????????? | | ??????????????????????????????????????????? | | ??????????????????????????????????????????? | | ??????????????????????? ??????????????? | | ??????????????????????? ????????????? | | ??????????????????????? ??????????? | | ??????????????????????? gg#??????????? | | ??????????????????????? #??????????? | | ??????????????????????? #??????????? | | ###########????????????# #??????????? | | # #???????????## ##?????????? | | # #???????????# #?????????? | | # ############# #?????????? | | # # #?????????? | | # # #?????????? | | # # #?????????? | | # %+ H #?????????? | | # " #?????????? | | ########### #######% @ #?????????? | | # # %% #?????????? | | ^ # ### ###?????????? | | """ # """ ##% #???????????? | | """ + """ ##; #???????????? | | ^""" # """ ##; +???????????? | | # + #???????????? | | """ # ### #???????????? | | """ ######## #?# #???????????? | | """ #??????#######?# #######?????? | | #??????######### #] #?????? | | """ #?????# #?????? | | """ ####### #?????? | | """ #?????? | | ####################;# #?????? | | """ #???# ## ##?????? | | """ #???# """"""""" ## #??????? | | """ #???# ## #??????? | | #???# """"""""" ## #??????? | | #???# "# #??????? | | ##########???# ## #??????? | | ?????????????# " " ## #??????? | | ?????????????# [ "Y" ## #??????? | | ?????????????# """ ## #??????? | | ######################+######### #??????? | +----------------------------------------------------+ Best States ------------- Heat Dissipation 51 Energy Generation 28 Energy Capacity 360 Matter Stores 400 Matter Capacity 400 Sight Range 18 Robot Scan Range 20 Terrain Scan Range 20 Terrain Scan Density 85 Armor Coverage 225 Resistance: KI 20 Resistance: TH 20 Resistance: EX 20 Resistance: EM 45 Resistance: I 20 Resistance: S 20 Resistance: P 20 Utility Shielding 33 Weapon Cycling 30 Evasion (%) 64 Targeting Accuracy 10 Recoil Reduction 2 Kinecelleration 40 Offensive Hacking 21 Item Schematics ----------------- None Robot Schematics ------------------ None Fabricated ------------ Nothing Alien Tech Used ----------------- None Achievements -------------- Backstab Hey, That's Mine! I Spy The More The Merrier Universal Adapter Challenges ------------ None Game ------ Seed ShieldXenonLeg Manual? 0 Play Time 01:15:46 Cumulative 7.4 hours Start 2024.04.08 @ 10:06:18 End 2024.04.08 @ 12:44:16 Sessions 3 Manual Loads 0 Difficulty Adventurer Special Mode None Game No. 9 Rogue 0 Adventurer 9 Explorer 0 Win Type - Total 0 Types 0/0/0/0/0/0/0/0/0 Lore% 5 Gallery% 16 Achievement% 14 Wizard Run 0 Options --------- Layout 0 ASCII 0 Keyboard 1 Movement Numpad Keybinds 0 Fullscreen 2 Font 18/Terminus Map View 76x50 Zoom Use 0% Tactical HUD 1 Map Filters NONE Filters NONE Steam 1 RUN: fe75e5d3-2413-4ae2-9814-d9146aef5842